bitfinex-derivatives/quotes_SOLF0:USTF0_20241105
["timestamp","ask_amount","ask_price","bid_price","bid_amount"]
[1730792575530,13.25492474,162.24,162.14,11.85212474]
[1730792575738,2.37418175,162.23,162.14,11.85212474]
[1730792575924,1.05378175,162.22,162.14,11.85212474]
[1730792576134,1.05378175,162.22,162.16,11.85212474]
[1730792576439,1.3245,162.27,162.16,11.85212474]
[1730792576440,11.85212474,162.27,162.16,11.85212474]
[1730792576625,3.85796156,162.26,162.16,11.85212474]
[1730792576829,1.05336156,162.25,162.16,11.85212474]
[1730792577335,3.0837,162.23,162.16,11.85212474]
[1730792577532,2.8046,162.26,162.18,11.85212474]
[1730792577927,2.8046,162.26,162.17,3.0846]
[1730792578127,11.85212474,162.25,162.16,11.85212474]
[1730792578337,11.85212474,162.23,162.14,17.31212474]
[1730792578536,3.085,162.17,162.11,14.93802474]
[1730792578736,11.85212474,162.21,162.11,11.85212474]
[1730792579131,3.0848,162.18,162.12,3.0856]
[1730792580434,3.0848,162.17,162.12,3.0856]
[1730792581731,3.0848,162.17,162.11,11.85212474]
[1730792581732,3.0846,162.19,162.11,11.85212474]
[1730792581941,1.4036,162.26,162.1,6.7926]
[1730792581942,11.85212474,162.25,162.14,11.85212474]
[1730792582133,11.85212474,162.25,162.16,11.85212474]
[1730792582134,13.25432474,162.25,162.16,11.85212474]
[1730792582337,3.0842,162.21,162.16,14.93702474]
[1730792582748,5.46,162.36,162.2,11.85212474]
[1730792583036,3.0833,162.26,162.21,3.0839]
[1730792583543,3.0833,162.26,162.22,3.0838]
[1730792583744,3.0833,162.26,162.2,11.85212474]
[1730792584046,3.0836,162.24,162.19,3.0843]
[1730792584540,1.4093,162.28,162.18,18.60262474]
[1730792584841,1.4093,162.28,162.19,3.0844]
[1730792585044,3.0835,162.24,162.18,18.60262474]
[1730792585837,1.4093,162.28,162.18,18.60262474]
[1730792586039,3.0833,162.25,162.18,18.60262474]
[1730792586238,11.85212474,162.27,162.18,18.60262474]
[1730792586442,11.85212474,162.27,162.18,9.8351]
[1730792586746,11.85212474,162.27,162.17,1.3709]
[1730792586747,11.85212474,162.25,162.17,1.3709]
[1730792586930,3.0842,162.21,162.17,1.3709]
[1730792587246,11.85212474,162.25,162.14,11.85212474]
[1730792587444,3.0847,162.18,162.14,5.46]
[1730792587644,11.85212474,162.22,162.14,5.46]
[1730792587947,3.0849,162.17,162.12,20.39772474]
[1730792588142,3.0849,162.17,162.12,14.93772474]
[1730792588359,11.85212474,162.2,162.11,1.3686]
[1730792588544,1.3251,162.19,162.11,1.3686]
[1730792588734,3.0853,162.15,162.11,4.4546]
[1730792588934,3.0853,162.15,162.11,3.086]
[1730792589139,1.3251,162.19,162.1,18.71152474]
[1730792589562,11.85212474,162.15,162.03,3.36393452]
[1730792589751,11.85212474,162.15,162.04,13.18192474]
[1730792589947,3.0861,162.11,162.06,3.0869]
[1730792590240,11.85212474,162.17,162.06,11.85212474]
[1730792590441,2.7142,162.18,162.08,11.85212474]
[1730792590641,13.17722474,162.19,162.08,11.85212474]
[1730792590642,1.3251,162.19,162.11,11.85212474]
[1730792590842,1.3251,162.19,162.08,5.74]
[1730792591042,1.3251,162.19,162.11,3.0859]
[1730792591343,1.3251,162.19,162.1,18.96543552]
[1730792591545,3.0848,162.18,162.11,2.7074]
[1730792591847,5.46,162.24,162.11,2.7074]
[1730792592146,3.0844,162.2,162.11,2.7074]
[1730792592346,18.96543552,162.22,162.11,2.7074]
[1730792593236,3.0847,162.18,162.14,3.0854]
[1730792593947,5.74,162.26,162.17,3.0848]
[1730792594348,5.74,162.26,162.14,5.74]
[1730792594550,3.0842,162.21,162.16,3.085]
[1730792595047,3.0845,162.19,162.15,3.0852]
[1730792595350,18.96543552,162.25,162.14,5.74]
[1730792595749,3.0843,162.2,162.16,3.085]
[1730792596147,18.96543552,162.25,162.14,5.74]
[1730792596347,18.96543552,162.25,162.15,3.0852]
[1730792596852,18.96543552,162.17,162.01,5.74]
[1730792597151,18.96543552,162.17,162.04,1.3473]
[1730792597343,5.74,162.19,162.05,18.96543552]
[1730792597544,7.0556,162.19,162.05,18.96543552]
[1730792598248,7.0556,162.19,162.08,3.0864]
[1730792598444,7.0556,162.19,162.05,18.96543552]
[1730792598445,18.96543552,162.16,162.05,18.96543552]
[1730792599849,18.96543552,162.16,162.08,3.0865]
[1730792600846,18.96543552,162.16,162.05,18.96543552]
[1730792601458,3.086,162.12,162.07,3.0866]
[1730792601756,3.086,162.12,162.05,18.96543552]
[1730792602448,3.086,162.12,162.08,3.0865]
[1730792602953,2.7026,162.18,162.05,18.96543552]
[1730792603256,2.7026,162.18,162.04,1.3473]
[1730792603577,18.96543552,162.14,162.04,1.3473]
[1730792603770,18.96543552,162.17,162.04,1.3473]
[1730792604344,3.0857,162.13,162.08,3.0864]
[1730792604555,2.7026,162.18,162.06,18.96543552]
[1730792604556,21.66803552,162.18,162.06,18.96543552]
[1730792605255,3.0854,162.14,162.1,3.0861]
[1730792605447,3.0854,162.14,162.06,18.96543552]
[1730792606153,3.0854,162.14,162.09,3.0862]
[1730792607258,21.66803552,162.18,162.09,3.0862]
[1730792607560,3.0856,162.13,162.09,3.0862]
[1730792608158,3.0854,162.14,162.07,3.0866]
[1730792608353,21.66803552,162.18,162.07,3.0866]
[1730792608653,3.0859,162.12,162.08,3.0865]
[1730792608846,21.66803552,162.18,162.04,20.31273552]
[1730792610145,3.0861,162.11,162.07,3.0866]
[1730792611357,3.0862,162.1,162.07,3.0866]
[1730792611761,11.84833539,162.15,162.07,3.0866]
[1730792611957,3.0861,162.11,162.07,3.0866]
[1730792613563,11.84833539,162.08,161.89,6.13568397]
[1730792613869,30.38833539,162.09,161.83,11.84833539]
[1730792613870,11.84833539,161.94,161.83,11.84833539]
[1730792614063,14.93773539,161.94,161.87,3.0904]
[1730792614261,11.84833539,161.94,161.85,11.84833539]
[1730792614964,3.0897,161.92,161.85,14.93923539]
[1730792615161,11.84833539,161.94,161.82,4.057]
[1730792615162,11.84833539,161.94,161.83,11.84833539]
[1730792615351,11.84833539,161.94,161.82,4.057]
[1730792615352,18.98571116,161.94,161.82,4.057]
[1730792615564,3.0902,161.9,161.83,3.0913]
[1730792615756,5.42,161.93,161.82,4.057]
[1730792615977,5.42,161.93,161.71,18.98571116]
[1730792615978,3.091,161.85,161.78,27.49801116]
[1730792616261,18.98571116,161.89,161.76,5.42]
[1730792616456,6.28030318,161.88,161.75,24.40571116]
[1730792616656,6.28030318,161.87,161.75,24.40571116]
[1730792616856,6.28030318,161.86,161.75,24.40571116]
[1730792617062,6.28030318,161.85,161.75,24.40571116]
[1730792617265,9.37150318,161.84,161.77,3.0924]
[1730792617455,5.42,161.91,161.78,18.98571116]
[1730792617655,6.2720146,161.9,161.78,18.98571116]
[1730792617856,3.0905,161.88,161.81,3.0917]
[1730792618261,24.40571116,161.92,161.78,18.98571116]
[1730792618661,3.0907,161.87,161.79,3.0919]
[1730792618857,1.2792,161.91,161.78,18.98571116]
[1730792619567,1.2792,161.91,161.78,24.40571116]
[1730792620363,3.0904,161.88,161.81,3.0916]
[1730792620762,3.0904,161.88,161.78,24.40571116]
[1730792620969,1.2792,161.91,161.81,18.98571116]
[1730792621466,3.0905,161.88,161.81,3.0915]
[1730792621766,18.98571116,161.89,161.78,5.42]
[1730792623269,3.0906,161.87,161.81,3.0915]
[1730792623466,3.0906,161.87,161.78,5.42]
[1730792624268,3.0906,161.87,161.81,3.0916]
[1730792624881,3.0906,161.87,161.78,5.42]
[1730792625168,3.0906,161.87,161.82,3.0914]
[1730792627272,3.0904,161.88,161.83,3.0912]
[1730792628372,3.0906,161.87,161.83,3.0912]
[1730792631079,20.26491116,161.91,161.83,3.0912]
[1730792631679,1.3889,161.9,161.83,3.0912]
[1730792632072,3.0904,161.88,161.83,3.0912]
[1730792633999,1.2792,161.91,161.87,3.0904]
[1730792634295,18.98571116,161.94,161.87,3.0904]
[1730792634484,18.98571116,161.94,161.82,4.036]
[1730792634784,3.0899,161.91,161.86,3.0906]
[1730792634986,5.1,161.95,161.82,4.036]
[1730792635195,3.0895,161.93,161.87,3.0904]
[1730792635389,21.77961116,161.97,161.84,5.1]
[1730792635784,3.0896,161.93,161.88,3.0902]
[1730792635973,21.77961116,161.97,161.88,3.0902]
[1730792636886,3.0897,161.92,161.88,3.0902]
[1730792637904,2.7939,161.97,161.82,1.4039]
[1730792637905,3.0905,161.88,161.82,1.4039]
[1730792638393,3.09,161.9,161.82,1.4039]
[1730792638773,11.86383103,161.89,161.82,1.4039]
[1730792639087,11.86383103,161.89,161.85,3.0909]
[1730792640379,11.86383103,161.91,161.86,3.0907]
[1730792640979,14.95373103,161.91,161.86,3.0907]
[1730792641380,11.86383103,161.91,161.86,3.0907]
[1730792641888,14.95363103,161.91,161.82,6.5039]
[1730792642585,11.86383103,161.91,161.82,6.5039]
[1730792643281,14.95363103,161.91,161.87,3.0904]
[1730792643683,11.86383103,161.91,161.82,6.5039]
[1730792643883,11.86383103,161.93,161.82,6.5039]
[1730792644180,11.86383103,161.93,161.83,13.27863103]
[1730792644384,14.95343103,161.93,161.88,3.0902]
[1730792644585,14.95343103,161.93,161.83,13.27863103]
[1730792644992,14.95343103,161.93,161.88,3.0902]
[1730792645383,7.8939,161.97,161.83,13.27863103]
[1730792645584,3.0894,161.94,161.89,3.09]
[1730792645785,11.86383103,161.95,161.89,3.09]
[1730792646089,3.0894,161.93,161.89,3.09]
[1730792646287,11.86383103,161.95,161.89,3.09]
[1730792646485,14.65773103,161.97,161.87,11.86383103]
[1730792646887,3.0889,161.96,161.88,5.1]
[1730792647289,17.74643103,161.97,161.88,5.1]
[1730792647894,3.0885,161.98,161.88,5.1]
[1730792648196,11.86383103,162.0,161.93,3.0894]
[1730792648496,3.0883,161.99,161.9,11.86383103]
[1730792648687,11.86383103,162.0,161.9,11.86383103]
[1730792649005,11.86383103,162.0,161.91,1.417]
[1730792649190,11.86383103,162.0,161.91,4.1237]
[1730792649892,11.86383103,162.0,161.97,3.0885]
[1730792650082,11.86383103,162.0,161.92,11.86383103]
[1730792650603,11.86383103,161.98,161.91,4.1237]
[1730792651083,11.86383103,161.96,161.93,3.0893]
[1730792651283,11.86383103,161.94,161.84,2.7327]
[1730792651493,11.86383103,161.94,161.85,4.82]
[1730792651785,11.86383103,161.9,161.84,4.1333]
[1730792653390,11.86383103,161.9,161.88,3.0902]
[1730792653587,11.86383103,161.97,161.84,4.1333]
[1730792653588,11.86383103,161.93,161.84,4.1333]
[1730792654095,11.86383103,161.93,161.89,3.0901]
[1730792654595,11.86383103,161.93,161.86,3.0906]
[1730792654801,11.86383103,161.93,161.84,4.1333]
[1730792654996,3.0892,161.95,161.84,4.1333]
[1730792654997,11.86383103,161.95,161.84,4.1333]
[1730792655200,11.86383103,161.95,161.85,11.86383103]
[1730792655586,11.86383103,161.95,161.91,3.0897]
[1730792656411,14.95293103,161.95,161.91,3.0897]
[1730792657000,3.0892,161.94,161.91,3.0897]
[1730792657299,11.86383103,161.93,161.89,3.09]
[1730792657792,11.86383103,161.91,161.84,4.1333]
[1730792658598,11.86383103,161.91,161.89,3.0901]
[1730792659188,14.95363103,161.91,161.87,3.0905]
[1730792660397,11.86383103,161.91,161.87,3.0904]
[1730792660991,14.95373103,161.91,161.87,3.0904]
[1730792661206,11.86383103,161.91,161.86,3.0906]
[1730792661399,11.86383103,161.89,161.86,3.0906]
[1730792661605,11.86383103,161.91,161.83,4.82]
[1730792661799,11.86383103,161.91,161.87,3.0904]
[1730792662395,14.95373103,161.91,161.87,3.0904]
[1730792665195,3.0904,161.88,161.84,3.0911]
[1730792665395,3.0904,161.88,161.8,4.82]
[1730792666196,14.95413103,161.89,161.85,3.0909]
[1730792666396,14.95413103,161.89,161.8,4.82]
[1730792666600,14.95413103,161.89,161.85,3.0908]
[1730792669398,14.95373103,161.91,161.87,3.0904]
[1730792670309,14.95373103,161.91,161.84,3.0911]
[1730792670504,14.95373103,161.91,161.81,11.86383103]
[1730792670703,11.86383103,161.91,161.81,11.86383103]
[1730792670900,11.86383103,161.91,161.83,11.86383103]
[1730792672106,11.86383103,161.91,161.89,3.09]
[1730792672404,11.86383103,161.91,161.83,11.86383103]
[1730792673000,11.86383103,161.91,161.8,4.82]
[1730792673200,11.86383103,161.91,161.81,11.86383103]
[1730792673607,11.86383103,161.91,161.89,3.0902]
[1730792673803,11.86383103,161.91,161.81,11.86383103]
[1730792674004,11.86383103,161.91,161.88,3.0904]
[1730792675406,11.86383103,161.91,161.81,11.86383103]
[1730792675711,14.95403103,161.89,161.81,11.86383103]
[1730792676103,11.86383103,161.89,161.81,11.86383103]
[1730792676305,11.86383103,161.89,161.86,3.0906]
[1730792676511,3.09,161.9,161.86,3.0906]
[1730792677614,3.09,161.9,161.81,11.86383103]
[1730792678008,3.09,161.9,161.83,3.0912]
[1730792678208,11.86383103,161.91,161.81,11.86383103]
[1730792678410,3.09,161.9,161.81,11.86383103]
[1730792679316,3.09,161.9,161.86,3.0906]
[1730792679616,3.09,161.9,161.81,11.86383103]
[1730792680008,3.09,161.9,161.86,3.0906]
[1730792680908,3.09,161.9,161.87,3.0905]
[1730792681309,3.09,161.9,161.81,11.86383103]
[1730792681618,3.09,161.9,161.86,3.0906]
[1730792683117,3.09,161.9,161.81,11.86383103]
[1730792683323,3.09,161.9,161.87,3.0905]
[1730792684611,7.1853,161.96,161.83,11.86383103]
[1730792684612,11.86383103,161.93,161.83,11.86383103]
[1730792684817,14.95343103,161.93,161.9,3.0898]
[1730792687214,14.95343103,161.93,161.85,4.54]
[1730792687215,11.86383103,161.93,161.85,4.54]
[1730792687419,2.6453,161.96,161.85,4.54]
[1730792687420,11.86383103,161.95,161.85,16.40383103]
[1730792687715,11.86383103,161.95,161.86,3.9373]
[1730792688513,11.86383103,161.95,161.92,3.0895]
[1730792688922,11.86383103,161.93,161.86,2.5688]
[1730792689145,11.86383103,161.9,161.81,1.3896]
[1730792689331,11.86383103,161.9,161.82,4.26]
[1730792689519,11.86383103,161.85,161.74,6.43553]
[1730792689824,11.86383103,161.85,161.82,3.0915]
[1730792693318,11.86383103,161.85,161.77,79.46728551]
[1730792693521,11.86383103,161.87,161.77,91.33111654]
[1730792695017,11.86383103,161.87,161.8,3.0919]
[1730792695220,14.95443103,161.87,161.77,91.33111654]
[1730792695621,14.95443103,161.87,161.83,3.0912]
[1730792696018,11.86383103,161.87,161.77,91.33111654]
[1730792696325,11.86383103,161.87,161.84,3.0911]
[1730792697419,11.86383103,161.87,161.86,3.0907]
[1730792699621,1.3786,161.89,161.79,11.86383103]
[1730792699825,11.86383103,161.91,161.81,11.86383103]
[1730792700015,11.86383103,161.91,161.82,1.3345]
[1730792700326,11.86383103,161.91,161.82,5.5945]
[1730792700529,11.86383103,161.91,161.83,1.3382]
[1730792700831,11.86383103,161.91,161.88,3.0902]
[1730792701829,11.86383103,161.91,161.89,3.0902]
[1730792702218,11.86383103,161.93,161.89,3.0901]
[1730792702426,14.95333103,161.93,161.89,3.0901]
[1730792702733,11.86383103,161.93,161.89,3.0901]
[1730792703124,11.86383103,161.93,161.83,13.20203103]
[1730792703316,3.0897,161.92,161.88,3.0902]
[1730792703521,11.86383103,161.91,161.88,3.0902]
[1730792704731,11.86383103,161.91,161.89,3.0902]
[1730792706430,11.86383103,161.93,161.83,13.20203103]
[1730792707737,11.86383103,161.97,161.87,11.86383103]
[1730792708029,11.86383103,161.97,161.87,16.12383103]
[1730792708243,11.86383103,161.97,161.9,3.09]
[1730792708439,11.86383103,161.97,161.87,16.12383103]
[1730792709828,11.86383103,161.97,161.95,3.0889]
[1730792711034,14.95273103,161.96,161.92,3.0895]
[1730792711232,11.86383103,161.96,161.87,4.26]
[1730792712037,11.86383103,161.96,161.93,3.0893]
[1730792712438,11.86383103,162.0,161.9,11.86383103]
[1730792712634,11.86383103,162.0,161.91,1.3939]
[1730792713134,11.86383103,162.0,161.96,3.0887]
[1730792714328,14.95193103,162.0,161.96,3.0887]
[1730792715534,14.95193103,162.0,161.93,3.0893]
[1730792715838,14.95193103,162.0,161.91,1.3939]
[1730792717027,3.0886,161.98,161.91,1.3939]
[1730792717231,11.86383103,162.0,161.91,1.3939]
[1730792717833,11.86383103,161.96,161.89,4.26]
[1730792718027,11.86383103,161.96,161.88,4.26]
[1730792718232,14.95273103,161.96,161.92,3.0894]
[1730792718433,11.86383103,161.96,161.88,4.26]
[1730792718633,11.86383103,161.96,161.87,4.0]
[1730792719032,3.0891,161.95,161.91,3.0896]
[1730792719236,11.86383103,161.96,161.87,4.0]
[1730792719438,4.0,161.97,161.87,4.0]
[1730792719739,14.95283103,161.96,161.87,4.0]
[1730792720245,3.0891,161.95,161.91,3.0897]
[1730792720433,11.86383103,161.96,161.87,4.0]
[1730792721248,14.95283103,161.96,161.92,3.0895]
[1730792723846,14.95283103,161.96,161.87,4.0]
[1730792724146,14.95283103,161.96,161.93,3.0894]
[1730792726245,11.86383103,161.96,161.93,3.0894]
[1730792726443,1.4112,162.02,161.88,11.86383103]
[1730792726650,14.95193103,162.0,161.9,11.86383103]
[1730792726841,11.86383103,161.98,161.9,11.86383103]
[1730792727040,11.86383103,161.98,161.91,3.0898]
[1730792727243,11.86383103,161.96,161.87,4.0]
[1730792727647,11.86383103,161.96,161.92,3.0894]
[1730792727844,14.95283103,161.96,161.92,3.0894]
[1730792728144,14.95283103,161.96,161.87,4.0]
[1730792728348,14.95283103,161.96,161.93,3.0894]
[1730792728751,11.86383103,161.96,161.94,3.0891]
[1730792728940,11.86383103,161.98,161.88,11.86383103]
[1730792729144,11.86383103,162.0,161.9,11.86383103]
[1730792729551,3.0883,161.99,161.9,11.86383103]
[1730792730047,13.27503103,162.02,161.92,11.86383103]
[1730792730249,13.27503103,162.02,161.92,15.86383103]
[1730792730438,13.27503103,162.02,161.93,1.2915]
[1730792731048,13.27503103,162.02,162.0,3.088]
[1730792731350,1.4112,162.02,162.0,3.088]
[1730792731549,1.4112,162.02,161.94,11.86383103]
[1730792731846,11.86383103,162.06,161.96,11.86383103]
[1730792732560,11.86383103,162.08,161.98,11.86383103]
[1730792732943,11.86383103,162.08,161.98,14.57133103]
[1730792733554,11.86383103,162.08,162.06,3.0868]
[1730792733863,1.3083,162.09,162.02,4.0]
[1730792734859,11.86383103,162.04,161.93,1.2915]
[1730792735067,11.86383103,162.04,161.94,4.0]
[1730792735541,11.86383103,162.04,161.95,11.86383103]
[1730792736147,11.86383103,162.04,162.01,3.0877]
[1730792738243,11.86383103,162.04,161.95,11.86383103]
[1730792738448,11.86383103,162.04,162.02,3.0876]
[1730792738654,11.86383103,162.05,161.97,11.86383103]
[1730792738856,11.86383103,162.07,161.97,11.86383103]
[1730792739250,11.86383103,162.07,161.98,1.3224]
[1730792739457,11.86383103,162.07,161.99,4.0]
[1730792739957,11.86383103,162.07,161.99,15.86383103]
[1730792740150,13.17213103,162.09,162.0,2.7829]
[1730792740553,16.25853103,162.09,162.02,3.0876]
[1730792740756,16.25853103,162.09,162.0,2.7829]
[1730792741150,16.25853103,162.09,162.04,3.0872]
[1730792743760,11.86383103,162.07,162.0,2.7829]
[1730792744462,14.95063103,162.07,162.02,3.0875]
[1730792744758,14.95063103,162.07,162.0,2.7829]
[1730792745656,11.86383103,162.07,162.04,3.0873]
[1730792752061,11.86383103,162.07,162.0,6.7829]
[1730792752465,13.17213103,162.09,162.0,6.7829]
[1730792752660,11.86383103,162.09,162.0,6.7829]
[1730792753275,11.86383103,162.09,162.06,3.0868]
[1730792755077,11.86383103,162.09,162.0,6.7829]
[1730792755383,14.94973103,162.12,162.02,11.86383103]
[1730792755979,14.94973103,162.12,162.08,3.0864]
[1730792756171,14.94973103,162.12,162.02,11.86383103]
[1730792757177,3.086,162.11,162.02,11.86383103]
[1730792757583,3.086,162.11,162.08,3.0865]
[1730792757796,4.4551,162.13,162.04,11.86383103]
[1730792757990,1.3695,162.13,162.05,3.84]
[1730792758480,1.3695,162.13,162.1,3.086]
[1730792758877,1.3695,162.13,162.06,11.86383103]
[1730792759179,49.42064558,162.17,162.08,11.86383103]
[1730792759384,11.86383103,162.17,162.08,11.86383103]
[1730792759684,14.94873103,162.17,162.13,3.0855]
[1730792760275,14.94833103,162.19,162.15,3.0852]
[1730792760585,11.86383103,162.19,162.1,15.70383103]
[1730792760772,3.0847,162.18,162.1,15.70383103]
[1730792761579,11.86383103,162.17,162.1,3.84]
[1730792763084,15.90513103,162.2,162.1,15.70383103]
[1730792763485,14.94883103,162.17,162.12,3.0858]
[1730792764388,3.0852,162.16,162.12,3.0858]
[1730792764691,11.86383103,162.17,162.1,3.84]
[1730792764989,11.86383103,162.17,162.13,3.0854]
[1730792765392,11.86383103,162.19,162.14,3.0852]
[1730792765694,11.86383103,162.19,162.1,3.84]
[1730792765895,14.94883103,162.17,162.1,3.84]
[1730792766094,14.94883103,162.17,162.12,3.0858]
[1730792766295,14.94883103,162.17,162.1,3.84]
[1730792766991,14.94883103,162.17,162.12,3.0858]
[1730792767294,11.86383103,162.17,162.1,3.84]
[1730792767481,3.0848,162.18,162.12,3.0857]
[1730792767685,3.0848,162.18,162.1,15.70383103]
[1730792767898,3.0849,162.17,162.1,15.70383103]
[1730792768089,15.90513103,162.2,162.1,15.70383103]
[1730792768394,3.0845,162.19,162.1,15.70383103]
[1730792769493,15.90513103,162.2,162.15,3.085]
[1730792769696,15.90513103,162.2,162.1,15.70383103]
[1730792769697,17.59293103,162.2,162.1,15.70383103]
[1730792771204,17.59293103,162.2,162.16,3.085]
[1730792771498,3.82,162.23,162.1,15.70383103]
[1730792771499,3.0841,162.21,162.12,11.86383103]
[1730792771688,11.86383103,162.22,162.12,11.86383103]
[1730792771893,11.86383103,162.22,162.13,4.0562]
[1730792772300,14.94783103,162.22,162.13,4.0562]
[1730792772505,11.86383103,162.24,162.14,11.86383103]
[1730792772686,2.6511,162.25,162.16,11.86383103]
[1730792772898,5.7344,162.25,162.21,3.084]
[1730792773207,37.81494954,162.27,162.18,11.86383103]
[1730792773697,3.0832,162.26,162.18,11.86383103]
[1730792774092,3.0832,162.26,162.2,3.0842]
[1730792774301,37.81494954,162.27,162.18,11.86383103]
[1730792774493,0.27529,162.27,162.18,11.86383103]
[1730792774702,0.27529,162.27,162.24,3.0834]
[1730792775303,12.13912103,162.27,162.16,11.86383103]
[1730792775516,11.86383103,162.24,162.16,11.86383103]
[1730792775799,11.86383103,162.24,162.16,3.82]
[1730792776103,3.0837,162.23,162.19,3.0843]
[1730792776330,11.86383103,162.22,162.16,3.82]
[1730792776597,11.86383103,162.2,162.16,3.82]
[1730792776797,14.94823103,162.2,162.16,3.82]
[1730792777697,11.86383103,162.2,162.12,3.82]
[1730792777897,11.86383103,162.2,162.11,3.82]
[1730792778091,11.86383103,162.18,162.1,3.82]
[1730792779395,11.86383103,162.18,162.13,3.0855]
[1730792779793,13.22983103,162.18,162.13,3.0855]
[1730792780305,3.0849,162.17,162.13,3.0855]
[1730792780495,11.86383103,162.16,162.11,3.0858]
[1730792780894,11.86383103,162.16,162.11,3.086]
[1730792782093,11.86383103,162.16,162.12,3.0857]
[1730792783308,14.94893103,162.16,162.12,3.0857]
[1730792784805,3.0852,162.15,162.11,3.0858]
[1730792785001,3.0852,162.15,162.08,3.6]
[1730792785207,11.86383103,162.16,162.08,3.6]
[1730792785505,14.94893103,162.16,162.08,3.6]
[1730792787304,14.94893103,162.16,162.12,3.0858]
[1730792787813,11.86383103,162.16,162.08,3.6]
[1730792788008,3.0856,162.13,162.09,3.0862]
[1730792788208,3.0856,162.13,162.05,4.0648]
[1730792788209,11.86383103,162.14,162.06,3.6]
[1730792790113,14.94923103,162.14,162.06,3.6]
[1730792790414,11.86383103,162.14,162.06,3.6]
[1730792790605,3.0857,162.13,162.09,3.0863]
[1730792792610,3.086,162.11,162.07,3.0866]
[1730792792810,3.086,162.11,162.04,15.46383103]
[1730792793007,11.86383103,162.14,162.04,15.46383103]
[1730792793214,11.86383103,162.12,162.03,3.6]
[1730792793424,1.368,162.11,162.03,3.6]
[1730792793917,3.03784431,162.25,162.07,11.86383103]
[1730792794109,11.86383103,162.19,162.07,11.86383103]
[1730792794418,3.0851,162.16,162.12,3.0858]
[1730792794915,3.0851,162.16,162.11,3.086]
[1730792795113,3.0851,162.16,162.09,11.86383103]
[1730792795811,3.0851,162.16,162.12,3.0857]
[1730792796014,3.0847,162.18,162.11,11.86383103]
[1730792796204,3.0847,162.18,162.14,3.0853]
[1730792796408,3.0847,162.18,162.11,11.86383103]
[1730792796811,3.0847,162.18,162.14,3.0853]
[1730792797014,3.0849,162.17,162.14,3.0853]
[1730792797417,11.86383103,162.19,162.09,11.86383103]
[1730792797612,11.86383103,162.17,162.09,11.86383103]
[1730792798012,3.0853,162.15,162.11,3.0859]
[1730792798412,3.0853,162.15,162.09,11.86383103]
[1730792798611,11.86383103,162.17,162.12,3.0857]
[1730792798814,3.0851,162.16,162.09,11.86383103]
[1730792799321,11.86383103,162.17,162.09,11.86383103]
[1730792799518,3.0852,162.15,162.12,3.0857]
[1730792801423,3.0852,162.15,162.11,3.0859]
[1730792801616,1.3835,162.16,162.08,3.6]
[1730792801821,2.7051,162.16,162.06,11.86383103]
[1730792802024,1.3435,162.15,162.06,11.86383103]
[1730792802220,11.86383103,162.13,162.03,4.998]
[1730792802820,3.086,162.11,162.07,3.0866]
[1730792803210,15.46383103,162.13,162.07,3.0866]
[1730792803410,15.46383103,162.13,162.03,4.998]
[1730792803623,3.0862,162.1,162.03,4.998]
[1730792803917,11.86383103,162.1,162.02,3.6]
[1730792804914,3.0867,162.08,162.04,3.0872]
[1730792805316,11.86383103,162.1,162.02,15.46383103]
[1730792805624,11.86383103,162.1,162.02,11.86383103]
[1730792805823,11.86383103,162.12,162.02,11.86383103]
[1730792806027,3.0862,162.1,162.05,3.087]
[1730792806221,3.0862,162.1,162.02,11.86383103]
[1730792806724,3.0862,162.1,162.06,3.0868]
[1730792807824,3.6,162.13,162.04,11.86383103]
[1730792808215,11.86383103,162.14,162.04,11.86383103]
[1730792808630,3.0856,162.13,162.04,11.86383103]
[1730792809019,11.86383103,162.14,162.04,11.86383103]
[1730792809227,3.086,162.12,162.04,11.86383103]
[1730792810028,3.086,162.12,162.08,3.0865]
[1730792810921,11.86383103,162.14,162.04,11.86383103]
[1730792811124,3.0856,162.13,162.04,11.86383103]
[1730792812026,11.86383103,162.14,162.04,11.86383103]
[1730792812325,3.0855,162.14,162.06,11.86383103]
[1730792812518,3.0855,162.14,162.08,3.0865]
[1730792812719,3.0855,162.14,162.06,15.28383103]